bitfinex/quotes_SOLUSD_20241123
["timestamp","ask_amount","ask_price","bid_price","bid_amount"]
[1732342745729,23.776884,258.4,258.12,0.580801]
[1732342746445,23.776884,258.38,258.12,0.580801]
[1732342746932,60.068015,258.3,258.12,0.580801]
[1732342747357,60.068015,258.3,258.13,2.5]
[1732342747531,60.068015,258.3,258.14,0.58071152]
[1732342751857,60.068015,258.3,258.11,6.93237274]
[1732342752645,23.776884,258.29,258.08,6.60126293]
[1732342752957,23.776884,258.29,258.05,6.0204355]
[1732342753159,23.776884,258.29,258.06,6.60136386]
[1732342753363,23.776884,258.29,258.06,0.58092836]
[1732342754056,23.776884,258.29,258.06,6.60136386]
[1732342754452,23.776884,258.29,258.06,0.58092836]
[1732342755346,23.776884,258.29,258.06,6.60136386]
[1732342755868,23.776884,258.29,258.06,0.58092836]
[1732342756345,23.776884,258.29,258.05,3.3477505]
[1732342756545,23.776884,258.29,258.04,3.53700573]
[1732342756883,23.776884,258.29,258.04,4.11797303]
[1732342758757,23.776884,258.29,258.04,6.8824452]
[1732342759263,23.776884,258.29,258.05,0.58099351]
[1732342762540,10.44354831,258.39,258.05,0.58099351]
[1732342762541,5.9912844,258.44,258.08,2.5]
[1732342762740,22.1949,258.45,258.08,2.5]
[1732342762741,2.87501712,258.42,258.16,192.5425674]
[1732342762953,2.87501712,258.41,258.16,192.5425674]
[1732342763165,2.87501712,258.4,258.16,192.5425674]
[1732342763379,2.87501712,258.39,258.16,192.5425674]
[1732342763545,18.73787078,258.43,258.16,192.5425674]
[1732342763749,46.65175264,258.42,258.16,192.5425674]
[1732342763966,23.776884,258.4,258.16,192.5425674]
[1732342764465,23.776884,258.41,258.16,192.5425674]
[1732342764662,23.776884,258.39,258.16,192.5425674]
[1732342765367,23.776884,258.41,258.16,192.5425674]
[1732342765551,23.776884,258.39,258.16,192.5425674]
[1732342765757,23.776884,258.41,258.16,192.5425674]
[1732342765955,20.0,258.42,258.16,192.5425674]
[1732342765956,23.776884,258.39,258.16,192.5425674]
[1732342766272,23.776884,258.37,258.16,192.5425674]
[1732342768268,15.419054,258.43,258.17,0.58079525]
[1732342769452,23.776884,258.42,258.17,0.58079525]
[1732342770853,15.419054,258.43,258.19,2.5]
[1732342771169,15.412096,258.5,258.27,192.5425674]
[1732342771372,15.412096,258.5,258.28,0.58042045]
[1732342771579,22.1949,258.54,258.28,0.58042045]
[1732342771912,37.604306,258.54,258.28,0.58042045]
[1732342772059,22.1949,258.54,258.28,0.58042045]
[1732342772560,23.776884,258.53,258.28,0.58042045]
[1732342772874,60.068015,258.3,258.28,0.58042045]
[1732342773076,60.068015,258.3,258.27,192.5425674]
[1732342775466,52.518015,258.3,258.27,192.5425674]
[1732342775957,44.79526559,258.3,258.27,192.5425674]
[1732342779778,37.24526559,258.3,258.27,192.5425674]
[1732342788377,31.23526559,258.3,258.27,192.5425674]
[1732342792167,31.23526559,258.3,258.27,196.07957313]
[1732342795978,31.23526559,258.3,258.28,23.776884]
[1732342801926,31.23526559,258.3,258.27,192.5425674]
[1732342811577,22.33898964,258.3,258.27,192.5425674]
[1732342812083,16.32898964,258.3,258.27,192.5425674]
[1732342812287,16.32898964,258.3,258.27,196.07957313]
[1732342812700,16.32898964,258.3,258.27,199.45176493]
[1732342814602,16.32898964,258.3,258.27,196.07957313]
[1732342823221,16.32898964,258.3,258.27,192.5425674]
[1732342830191,22.5244,258.34,258.27,192.5425674]
[1732342831719,22.5244,258.34,258.28,23.776884]
[1732342834499,22.5244,258.34,258.27,192.5425674]
[1732342838297,16.32899,258.28,258.27,192.5425674]
[1732342841815,16.32899,258.28,258.21,3.53700573]
[1732342842012,16.32899,258.28,258.17,200.58626165]
[1732342842226,16.32899,258.28,258.17,192.5425674]
[1732342843213,22.406,258.27,258.17,192.5425674]
[1732342846121,22.406,258.27,258.18,23.776884]
[1732342848337,22.406,258.27,258.17,192.5425674]
[1732342862632,22.406,258.27,258.18,0.58076585]
[1732342862940,22.406,258.27,258.18,4.32083052]
[1732342863316,22.406,258.27,258.18,3.74006467]
[1732342863934,22.406,258.27,258.18,4.32083002]
[1732342870554,16.32899,258.28,258.19,6.0204355]
[1732342870716,16.32899,258.28,258.2,4.32067169]
[1732342871244,16.32899,258.28,258.2,10.34110719]
[1732342872821,16.32899,258.28,258.2,4.32067169]
[1732342873020,16.32899,258.28,258.2,3.74006467]
[1732342876540,16.32899,258.28,258.2,4.32075461]
[1732342876746,16.32899,258.28,258.27,192.5425674]
[1732342893247,16.32899,258.28,258.2,3.74006467]
[1732342893443,16.32899,258.28,258.17,192.5425674]
[1732342893642,16.32899,258.28,258.18,23.776884]
[1732342896557,21.4592,258.33,258.18,23.776884]
[1732342903739,16.32899,258.25,258.18,23.776884]
[1732342907237,16.32899,258.25,258.18,24.35762736]
[1732342908067,16.32899,258.25,258.18,30.37806286]
[1732342908773,16.32899,258.25,258.18,22.03162736]
[1732342909264,16.32899,258.25,258.18,28.05206286]
[1732342909437,16.32899,258.25,258.19,3.74006467]
[1732342909640,22.5221,258.24,258.19,3.74006467]
[1732342909838,22.5221,258.23,258.08,6.0204355]
[1732342910060,22.5221,258.23,258.07,192.5425674]
[1732342910363,22.5221,258.22,258.07,192.5425674]
[1732342910543,22.5221,258.21,258.07,192.5425674]
[1732342914063,22.5221,258.21,258.08,0.58090383]
[1732342915342,22.5221,258.21,258.08,4.42790383]
[1732342915543,22.5221,258.21,258.08,0.58090383]
[1732342917279,22.5221,258.21,258.08,4.42790383]
[1732342917768,22.5221,258.21,258.08,7.80204653]
[1732342919867,22.5221,258.21,258.08,13.82248203]
[1732342920243,22.5221,258.21,258.08,9.97548203]
[1732342920444,22.5221,258.21,258.08,3.95504653]
[1732342922061,22.5221,258.21,258.18,192.5425674]
[1732342933583,22.5221,258.21,258.08,3.38411666]
[1732342933778,22.5221,258.21,258.05,4.43109147]
[1732342933966,22.9748,258.2,258.05,4.43109147]
[1732342934958,22.9748,258.2,258.06,23.776884]
[1732342935576,22.9748,258.18,258.05,3.27894299]
[1732342935757,22.9748,258.18,258.04,3.15135449]
[1732342935956,22.9748,258.18,258.01,3.847]
[1732342936163,6.3355,258.17,258.01,3.847]
[1732342936358,6.3355,258.17,257.99,8.06082363]
[1732342937360,6.3355,258.17,258.0,23.776884]
[1732342937560,6.3355,258.17,258.01,3.847]
[1732342938175,22.9748,258.16,258.0,23.776884]
[1732342938356,16.32899,258.25,258.0,23.776884]
[1732342938357,6.3355,258.14,258.0,23.776884]
[1732342938555,6.3355,258.14,257.99,6.67017457]
[1732342938881,6.3355,258.14,257.99,3.37384198]
[1732342939598,6.3355,258.14,257.99,7.22084198]
[1732342940285,6.3355,258.14,258.0,0.58112562]
[1732342940456,6.3355,258.14,258.0,16.05968821]
[1732342940652,6.3355,258.14,258.0,24.58012371]
[1732342940859,6.3355,258.14,258.01,3.847]
[1732342941152,6.3355,258.14,258.03,3.847]
[1732342941355,6.3355,258.14,258.05,3.847]
[1732342941985,6.3355,258.14,258.06,0.5809809]
[1732342942383,6.3355,258.14,258.07,3.37384198]
[1732342942877,6.3355,258.14,258.08,3.847]
[1732342943268,6.3355,258.14,258.08,4.42791745]
[1732342945580,16.32899,258.25,258.08,4.42791745]
[1732342945581,22.7345,258.21,258.08,4.42791745]
[1732342945886,22.7345,258.21,258.08,0.58091745]
[1732342946262,22.7345,258.21,258.08,26.35228872]
[1732342946483,22.7345,258.21,258.1,2.5]
[1732342946778,22.7345,258.21,258.08,32.37272422]
[1732342947383,22.7345,258.21,258.08,31.79180677]
[1732342947684,22.7345,258.21,258.08,29.29180677]
[1732342947860,22.7345,258.21,258.08,23.27137127]
[1732342948464,22.7345,258.21,258.08,31.79180677]
[1732342948865,22.7345,258.21,258.08,34.29180677]
[1732342949084,22.7345,258.21,258.09,6.60129998]
[1732342949675,22.7345,258.21,258.09,10.44829998]
[1732342950383,22.7345,258.21,258.08,9.29180677]
[1732342951273,22.7345,258.21,258.08,11.79180677]
[1732342951579,22.7345,258.21,258.09,6.60126688]
[1732342951788,22.7345,258.21,258.09,6.0204355]
[1732342951970,22.7345,258.21,258.08,6.0204355]
[1732342952369,22.7345,258.21,258.07,9.39427748]
[1732342952573,22.7345,258.21,258.07,6.68394343]
[1732342952870,22.7345,258.21,258.07,3.31010145]
[1732342953190,6.6558,258.2,258.04,6.0204355]
[1732342953489,6.6558,258.2,258.05,6.0204355]
[1732342958487,16.0787,258.19,258.04,23.776884]
[1732342958664,6.6558,258.18,258.04,23.776884]
[1732342959369,22.7345,258.17,258.03,0.58099213]
[1732342959570,22.7345,258.17,258.02,6.0204355]
[1732342959889,22.7345,258.17,258.02,20.0]
[1732342960385,22.627,258.16,258.01,6.0204355]
[1732342961188,22.627,258.16,258.02,23.776884]
[1732342961373,22.627,258.16,258.02,29.7973195]
[1732342962673,22.627,258.16,258.03,6.0204355]
[1732342962880,22.627,258.16,258.04,0.58098582]
[1732342963796,22.627,258.16,258.11,192.5425674]
[1732342965891,22.627,258.15,258.03,3.27981971]
[1732342966096,22.627,258.15,258.02,23.776884]
[1732342966896,22.627,258.15,258.01,6.0204355]
[1732342967093,22.627,258.14,258.01,6.0204355]
[1732342967273,22.627,258.13,258.01,6.0204355]
[1732342967479,22.627,258.13,258.01,3.28554488]
[1732342967783,22.627,258.13,258.0,6.0204355]
[1732342969275,22.627,258.13,258.01,3.847]
[1732342973779,22.627,258.13,258.0,20.0]
[1732342974093,22.627,258.13,258.01,3.847]
[1732342975302,22.627,258.13,258.0,20.0]
[1732342975482,22.627,258.13,258.01,3.847]
[1732342975687,22.627,258.13,258.01,0.58108647]
[1732342976587,22.627,258.13,258.01,9.8674355]
[1732342976791,22.627,258.13,258.01,3.847]
[1732342976986,22.627,258.13,258.0,26.0204355]
[1732342977393,22.627,258.13,258.01,9.10146994]
[1732342977800,22.627,258.13,258.02,20.0]
[1732342978003,22.627,258.13,258.03,0.58098538]
[1732342978492,22.627,258.13,258.03,4.42798538]
[1732342978898,22.627,258.13,258.07,2.5]
[1732342979112,16.0808,258.2,258.08,6.0204355]
[1732342979409,16.0808,258.2,258.09,20.58083529]
[1732342979607,16.0808,258.2,258.09,26.60127079]
[1732342979807,16.0808,258.2,258.1,6.0204355]
[1732342980307,16.0808,258.2,258.11,3.847]
[1732342980683,16.0808,258.2,258.1,6.0204355]
[1732342980883,16.0808,258.2,258.11,3.847]
[1732342981103,16.0808,258.2,258.11,29.10126214]
[1732342981298,16.32899,258.25,258.15,20.0]
[1732342981501,16.32899,258.25,258.15,26.60115666]
[1732342981691,16.32899,258.25,258.13,20.0]
[1732342981892,16.32899,258.25,258.14,0.58082888]
[1732342982093,6.1114,258.24,258.14,0.58082888]
[1732342983110,6.1114,258.24,258.14,6.60126438]
[1732342983899,6.1114,258.24,258.14,0.58082888]
[1732342984403,16.3558,258.23,258.13,20.0]
[1732342984608,16.3558,258.23,258.12,3.37341995]
[1732342984803,16.3558,258.23,258.11,20.0]
[1732342986904,16.3558,258.23,258.12,23.776884]
[1732342988197,16.3558,258.23,258.13,0.58084286]
[1732342989213,16.3558,258.23,258.13,20.58084286]
[1732342990021,16.3558,258.23,258.13,24.42784286]
[1732342990897,16.3558,258.23,258.13,30.44827836]
[1732342991219,16.3558,258.23,258.15,20.0]
[1732342992104,16.3558,258.23,258.16,6.60117831]
[1732342992307,16.3558,258.23,258.16,0.58074281]
[1732342992608,16.32899,258.25,258.2,8.5204355]
[1732342992812,16.32899,258.25,258.21,26.0204355]
[1732342993118,16.32899,258.25,258.22,3.847]
[1732342994324,16.32899,258.25,258.23,3.847]
[1732342994614,16.32899,258.25,258.21,23.776884]
[1732342995417,16.32899,258.25,258.22,3.847]
[1732342996009,16.32899,258.25,258.24,192.5425674]
[1732342998721,16.32899,258.25,258.24,216.3194514]
[1732343001823,16.32899,258.25,258.24,236.3194514]
[1732343002528,16.32899,258.25,258.24,240.1664514]
[1732343002710,16.32899,258.25,258.24,220.1664514]
[1732343003107,16.32899,258.25,258.24,236.3194514]
[1732343004208,16.32899,258.25,258.24,240.1664514]
[1732343004409,16.32899,258.25,258.24,236.3194514]
[1732343006323,16.32899,258.25,258.24,240.1664514]
[1732343008533,16.32899,258.25,258.24,236.3194514]
[1732343008832,16.32899,258.25,258.24,240.1664514]
[1732343009415,16.32899,258.25,258.24,236.3194514]
[1732343009735,16.32899,258.25,258.24,240.1664514]
[1732343010437,16.32899,258.25,258.24,236.3194514]
[1732343010737,8.68899,258.25,258.24,239.69287135]
[1732343011143,1.33799,258.25,258.24,243.53987135]
[1732343011633,22.9557,258.36,258.26,3.847]
[1732343012738,22.9557,258.36,258.25,20.58049601]
[1732343012938,22.9557,258.36,258.27,20.0]
[1732343013237,22.9557,258.36,258.29,3.847]
[1732343013419,22.9557,258.36,258.28,3.95383045]
[1732343013618,22.9557,258.36,258.28,3.37341995]
[1732343014417,22.9557,258.36,258.29,20.0]
[1732343014935,22.9557,258.36,258.28,3.37341995]
[1732343015823,22.9557,258.36,258.24,192.5425674]
[1732343016226,22.9557,258.36,258.34,192.5425674]
[1732343017827,3.41551339,258.6,258.34,192.5425674]
[1732343017828,16.6271,258.55,258.35,25.68762785]
[1732343018140,6.3286,258.52,258.44,192.5425674]
[1732343020540,15.743,258.51,258.44,192.5425674]
[1732343020848,6.5232,258.48,258.36,4.09925328]
[1732343022647,6.5232,258.48,258.37,23.847]
[1732343023731,6.5232,258.48,258.37,20.0]
[1732343023941,6.5232,258.48,258.36,4.09925328]
[1732343024945,6.5232,258.46,258.36,4.09925328]
[1732343026453,6.5232,258.44,258.36,4.09925328]
[1732343026657,15.743,258.43,258.31,20.0]
[1732343027154,15.743,258.43,258.31,24.09925328]
[1732343028932,15.743,258.43,258.32,3.847]
[1732343029133,15.743,258.43,258.32,23.847]
[1732343029349,15.743,258.43,258.32,20.0]
[1732343029734,15.743,258.43,258.32,4.09925328]
[1732343030152,15.743,258.43,258.33,23.847]
[1732343030345,15.743,258.43,258.33,24.09925328]
[1732343030751,15.743,258.43,258.33,4.09925328]
[1732343039258,6.5232,258.42,258.25,5.12538234]
[1732343039557,6.5232,258.42,258.23,6.0204355]
[1732343039558,6.5232,258.42,258.27,4.09925328]
[1732343039942,22.2662,258.41,258.27,4.09925328]
[1732343041444,22.2662,258.41,258.28,23.776884]
[1732343041852,22.2662,258.41,258.29,20.0]
[1732343045550,22.2662,258.41,258.29,24.09925328]
[1732343045944,22.2662,258.41,258.29,27.94625328]
[1732343046149,22.2662,258.41,258.29,24.09925328]
[1732343049266,22.2662,258.41,258.3,3.847]
[1732343050763,22.2662,258.41,258.34,192.5425674]
[1732343077363,21.2039,258.39,258.29,4.09925328]
[1732343077558,21.2039,258.39,258.24,192.5425674]
[1732343077559,15.1228,258.39,258.24,192.5425674]
[1732343077765,2.5,258.45,258.24,192.5425674]
[1732343077766,15.1228,258.37,258.24,192.5425674]
[1732343078761,15.1228,258.37,258.25,20.0]
[1732343080883,15.1228,258.37,258.26,5.18176321]
[1732343082479,15.1228,258.37,258.27,20.0]
[1732343083071,15.1228,258.37,258.25,20.0]
[1732343083979,15.1228,258.37,258.25,23.87536439]
[1732343084964,15.1228,258.37,258.25,29.89579989]
[1732343086878,15.1228,258.37,258.27,3.847]
[1732343087113,15.1228,258.37,258.28,9.0571276]
[1732343087589,15.1228,258.37,258.29,20.0]
[1732343092166,15.1228,258.37,258.28,13.74279989]
[1732343093273,15.1228,258.37,258.29,6.0204355]
[1732343093588,15.1228,258.37,258.28,13.74279989]
[1732343093789,15.1228,258.37,258.29,20.0]
[1732343098073,6.1033,258.44,258.35,20.0]
[1732343099389,6.1033,258.44,258.34,192.5425674]
[1732343103876,16.644,258.45,258.35,5.76214978]
[1732343104090,16.644,258.45,258.36,3.847]
[1732343104298,16.644,258.45,258.38,3.847]
[1732343104991,16.644,258.45,258.38,3.87536439]
[1732343106701,16.644,258.45,258.35,20.0]
[1732343106993,6.0459,258.44,258.35,20.0]
[1732343112185,6.0459,258.44,258.34,192.5425674]
[1732343112377,6.0459,258.44,258.35,23.776884]
[1732343112577,6.0459,258.44,258.36,20.0]
[1732343114397,6.0459,258.44,258.35,23.776884]
[1732343114699,6.0459,258.44,258.34,192.5425674]
[1732343120509,2.5,258.39,258.24,6.0204355]
[1732343120703,16.4147,258.34,258.24,192.5425674]
[1732343125204,23.0343,258.32,258.15,23.87536439]
[1732343125384,19.0883,258.31,258.15,23.87536439]
[1732343125590,19.0883,258.29,258.15,7.22331917]
[1732343125900,19.0883,258.29,258.14,192.5425674]
[1732343127010,16.5883,258.29,258.14,192.5425674]
[1732343127486,16.5883,258.26,258.14,192.5425674]
[1732343127690,6.446,258.25,258.14,195.81735723]
[1732343134692,8.946,258.25,258.14,195.81735723]
[1732343134894,2.5,258.23,258.14,192.5425674]
[1732343135206,6.446,258.21,258.14,192.5425674]
[1732343138498,16.5883,258.27,258.14,192.5425674]
[1732343138693,2.5,258.26,258.14,192.5425674]
[1732343139310,5.0,258.26,258.14,192.5425674]
[1732343139899,2.5,258.24,258.14,192.5425674]
[1732343140107,6.446,258.23,258.14,192.5425674]
[1732343146110,16.5883,258.25,258.14,192.5425674]
[1732343146632,6.1001,258.29,258.15,20.0]
[1732343146805,15.7233,258.31,258.15,20.0]
[1732343146806,15.7233,258.31,258.16,4.38972191]
[1732343147000,15.7233,258.31,258.17,23.87536439]
[1732343148026,15.7233,258.31,258.17,3.87536439]
[1732343149606,15.7233,258.31,258.17,23.87536439]
[1732343149925,6.1001,258.35,258.24,192.5425674]
[1732343150122,0.25957001,258.35,258.24,192.5425674]
[1732343150300,15.7233,258.37,258.24,196.41793179]
[1732343150501,2.5,258.53,258.25,3.87536439]
[1732343151223,2.5,258.52,258.34,192.5425674]
[1732343151725,2.5,258.51,258.34,192.5425674]
[1732343152226,2.5,258.49,258.34,192.5425674]
[1732343152520,2.5,258.47,258.34,192.5425674]
[1732343152823,5.0,258.47,258.25,7.22359447]
[1732343153027,2.5,258.42,258.25,7.22359447]
[1732343153332,6.1001,258.46,258.25,7.22359447]
[1732343153509,15.7233,258.45,258.25,7.22359447]
[1732343156205,18.2233,258.45,258.25,7.22359447]
[1732343156409,2.5,258.43,258.25,7.22359447]
[1732343157136,20.7233,258.45,258.25,7.22359447]
[1732343157705,15.7233,258.45,258.25,7.22359447]
[1732343157927,15.7233,258.45,258.26,20.0]
[1732343162410,15.7233,258.45,258.27,0.58064565]
[1732343162616,15.7233,258.45,258.34,192.5425674]
[1732343163734,15.7233,258.45,258.35,20.0]
[1732343166326,16.4065,258.54,258.35,20.0]
[1732343166826,16.4065,258.54,258.35,23.87536439]
[1732343167739,18.9065,258.54,258.35,23.87536439]
[1732343168540,18.9065,258.54,258.37,20.0]
[1732343168541,2.5,258.52,258.37,20.0]
[1732343168743,18.9065,258.54,258.37,20.0]
[1732343168744,16.4065,258.5,258.37,20.0]
[1732343169238,16.4065,258.5,258.36,23.776884]
[1732343169617,16.4065,258.5,258.34,192.5425674]
[1732343171938,16.4065,258.49,258.35,23.776884]
[1732343172120,16.4065,258.47,258.34,195.88177684]
[1732343175348,16.4065,258.47,258.34,192.5425674]
[1732343176929,16.4065,258.47,258.35,23.776884]
[1732343177931,16.4065,258.47,258.34,192.5425674]
[1732343178137,6.5411,258.46,258.34,192.5425674]
[1732343178331,16.4065,258.45,258.34,192.5425674]
[1732343179249,18.9065,258.45,258.34,192.5425674]
[1732343179432,18.9065,258.45,258.25,20.0]
[1732343179632,16.4065,258.44,258.25,20.0]
[1732343181555,16.4065,258.44,258.25,28.51786408]
[1732343182137,16.4065,258.44,258.25,27.22783968]
[1732343183354,16.4065,258.44,258.26,3.87536439]
[1732343184626,21.9482,258.43,258.26,3.87536439]
[1732343185247,15.5418,258.42,258.26,3.87536439]
[1732343185449,15.5418,258.39,258.26,3.87536439]
[1732343186253,6.4064,258.38,258.26,3.87536439]
[1732343188455,15.5418,258.37,258.26,3.87536439]
[1732343188666,15.5418,258.37,258.24,192.5425674]
[1732343190749,18.0418,258.37,258.24,192.5425674]
[1732343192459,18.0418,258.37,258.24,195.94863058]
[1732343193334,15.5418,258.37,258.24,195.94863058]
[1732343193854,15.5418,258.37,258.25,20.0]
[1732343202455,15.5418,258.37,258.26,23.776884]
[1732343202756,15.5418,258.37,258.27,20.0]
[1732343203145,15.5418,258.37,258.26,23.776884]
[1732343203557,15.5418,258.37,258.25,20.0]
[1732343204064,15.5418,258.37,258.26,23.776884]
[1732343204263,15.5418,258.37,258.28,23.776884]
[1732343205267,15.5418,258.37,258.25,4.66316012]
[1732343208648,15.5418,258.37,258.25,24.66316012]
[1732343211475,15.5418,258.37,258.26,23.776884]
[1732343211670,15.5418,258.37,258.27,20.0]
[1732343212768,15.5418,258.37,258.26,23.776884]
[1732343212970,15.5418,258.37,258.24,192.5425674]
[1732343213286,15.5418,258.37,258.25,20.0]
[1732343215552,15.5418,258.37,258.26,4.66316012]
[1732343217649,15.5418,258.37,258.27,20.0]
[1732343218158,15.5418,258.37,258.27,23.87536439]
[1732343218777,15.5418,258.37,258.28,3.87536439]
[1732343220489,15.5418,258.37,258.24,192.5425674]
[1732343221071,15.5418,258.37,258.24,197.20572752]
[1732343221654,15.5418,258.37,258.25,23.776884]
[1732343223056,15.5418,258.37,258.26,20.0]
[1732343223454,15.5418,258.37,258.27,23.776884]
[1732343223654,15.5418,258.37,258.29,23.776884]
[1732343224074,15.5418,258.37,258.26,24.66316012]
[1732343224259,15.5418,258.37,258.27,23.776884]
[1732343224671,15.5418,258.37,258.28,20.0]
[1732343225274,15.3318,258.37,258.28,20.0]
[1732343225473,15.3318,258.37,258.27,23.776884]
[1732343226258,15.3318,258.37,258.27,27.0651164]
[1732343228889,15.3318,258.37,258.24,192.5425674]
[1732343229879,15.3318,258.37,258.24,195.83933319]
[1732343230767,15.3318,258.37,258.25,20.0]
[1732343230971,15.3318,258.37,258.27,20.0]
[1732343235177,15.3318,258.37,258.26,23.776884]
[1732343235490,15.3318,258.37,258.24,195.83933319]
[1732343238870,16.548,258.35,258.24,192.5425674]
[1732343239286,16.548,258.35,258.22,3.87536439]
[1732343239789,16.548,258.33,258.17,3.87536439]
[1732343240371,16.548,258.33,258.18,24.66316012]
[1732343241784,6.0083,258.32,258.18,24.66316012]
[1732343241968,16.6139,258.31,258.18,24.66316012]
[1732343242481,19.1139,258.31,258.18,24.66316012]
[1732343242885,16.6139,258.31,258.18,24.66316012]
[1732343244863,16.6139,258.31,258.17,23.87536439]
[1732343246294,16.6139,258.31,258.17,28.53852451]
[1732343247593,16.6139,258.31,258.18,3.846]
[1732343247774,16.6139,258.31,258.17,28.53852451]
[1732343249974,16.6139,258.31,258.17,23.87536439]
[1732343252676,16.6139,258.31,258.17,3.87536439]
[1732343254194,6.0083,258.3,258.17,3.87536439]
[1732343254398,16.6139,258.29,258.17,3.87536439]
[1732343254574,16.6139,258.29,258.14,192.5425674]
[1732343255697,16.6139,258.29,258.14,195.80394411]
[1732343256687,16.6139,258.29,258.15,20.0]
[1732343257977,16.6139,258.29,258.15,24.66316012]
[1732343258613,2.5,258.25,258.15,1.32996012]
[1732343258772,2.5,258.25,258.06,6.0204355]
[1732343258773,2.5,258.01,257.96,3.38330121]
[1732343258979,20.0,258.04,257.83,192.5425674]
[1732343259489,35.437423,258.04,257.83,192.5425674]
[1732343260070,15.437423,258.04,257.83,196.41269094]
[1732343260277,20.437423,258.04,257.84,3.87012354]
[1732343260796,15.437423,258.04,257.84,3.87012354]
[1732343260994,4.59133683,258.06,257.84,3.87012354]
[1732343261184,4.59133683,258.06,257.84,4.45166957]
[1732343261393,4.59133683,258.06,257.84,24.45166957]
[1732343261591,4.59133683,258.06,257.84,28.29766957]
[1732343262592,4.59133683,258.06,257.85,16.37]
[1732343262790,4.59133683,258.06,257.86,24.45151971]
[1732343264294,4.59133683,258.06,257.86,23.87012354]
[1732343266301,20.0,258.05,257.78,16.37]
[1732343266477,7.09133683,258.06,257.83,192.5425674]
[1732343266804,9.59133683,258.06,257.83,192.5425674]
[1732343267112,7.09133683,258.06,257.83,192.5425674]
[1732343267901,4.59133683,258.06,257.84,20.0]
[1732343269397,4.59133683,258.06,257.84,23.48373465]
[1732343269907,4.59133683,258.06,257.85,3.846]
[1732343271383,4.59133683,258.06,257.84,23.48373465]
[1732343271585,4.59133683,258.06,257.84,24.06517848]
[1732343271799,4.59133683,258.06,257.84,23.48373465]
[1732343276699,4.59133683,258.06,257.84,27.32973465]
[1732343277284,4.59133683,258.06,257.85,3.846]
[1732343277478,4.59133683,258.06,257.85,7.32973465]
[1732343277799,4.59133683,258.06,257.86,23.846]
[1732343277994,4.59133683,258.06,257.86,7.32973465]
[1732343278590,4.59133683,258.06,257.87,20.0]
[1732343278802,4.59133683,258.06,257.86,3.48373465]
[1732343281700,15.6036,258.05,257.86,3.48373465]
[1732343281901,15.6036,258.05,257.83,192.5425674]
[1732343283203,15.6036,258.05,257.84,20.0]
[1732343284997,15.6036,258.05,257.84,19.5]
[1732343286700,21.7055,258.04,257.84,19.5]
[1732343287517,21.7055,258.04,257.84,22.86614956]
[1732343289827,21.7055,258.04,257.84,26.34988421]
[1732343290021,21.7055,258.04,257.85,3.48373465]
[1732343290608,21.7055,258.04,257.85,20.01813465]
[1732343290803,21.7055,258.04,257.93,192.5425674]
[1732343292037,21.7055,258.04,257.94,20.0]
[1732343292412,15.6036,258.1,257.94,20.0]
[1732343293619,15.6036,258.1,257.94,23.48373465]
[1732343294330,15.6036,258.1,257.95,3.48373465]
[1732343295135,15.6036,258.1,257.96,20.0]
[1732343295310,15.6036,258.1,257.97,3.48373465]
[1732343301123,15.284,258.17,258.04,192.5425674]
[1732343301430,5.68530367,258.17,258.05,20.0]
[1732343302133,5.68530367,258.17,258.05,23.48373465]
[1732343302333,5.68530367,258.17,258.06,3.48373465]
[1732343304328,5.68530367,258.17,258.05,20.0]
[1732343305148,5.68530367,258.17,258.04,192.5425674]
[1732343305643,5.68530367,258.17,258.04,195.3900743]
[1732343306515,5.68530367,258.17,258.05,20.0]
[1732343311535,6.1439,258.19,258.05,20.0]
[1732343311716,16.26,258.23,258.06,3.48373465]
[1732343312121,6.0216,258.26,258.15,20.0]
[1732343314426,6.0216,258.26,258.15,19.5]
[1732343314824,6.0216,258.26,258.09,192.62062465]
[1732343315232,16.26,258.25,258.09,192.62062465]